fUST/lending_fUST_20260313
["ID","MTS","AMOUNT","RATE_DAILY","PERIOD"]
[408292629,1773360647045,-503.145309,0.00010959,2]
[408292630,1773360647055,-503.145309,0.00010959,2]
[408292631,1773360647064,-503.145309,0.00010959,2]
[408292632,1773360647073,-503.145309,0.00010959,2]
[408292633,1773360647082,-503.145309,0.00010959,2]
[408292634,1773360647092,-503.145309,0.00010959,2]
[408292635,1773360647103,-503.145309,0.00010959,2]
[408292636,1773360647113,-503.145309,0.00010959,2]
[408292637,1773360647123,-503.145309,0.00010959,2]
[408292638,1773360647132,-503.145309,0.00010959,2]
[408292639,1773360647142,-1000.0,0.00010964,2]
[408292640,1773360647152,-436.0,0.0001099,2]
[408292641,1773360647161,-733.0,0.0001099,2]
[408292642,1773360647171,-6011.79461759,0.00011039,2]
[408292643,1773360647180,-1000.0,0.00011177,2]
[408292644,1773360647190,-387.816006,0.00011233,2]
[408292645,1773360647200,-1000.0,0.00011245,2]
[408292646,1773360647210,-1000.0,0.00011245,2]
[408292647,1773360647219,-49.62621124,0.00011245,2]
[408292648,1773360647256,-529.37378876,0.00011245,2]
[408292649,1773360647265,-387.816006,0.00011288,2]
[408292650,1773360647274,-387.816006,0.00011342,2]
[408292651,1773360647286,-1000.0,0.00011396,2]
[408292652,1773360647296,-387.816006,0.00011397,2]
[408292653,1773360647306,-387.816006,0.00011452,2]
[408292654,1773360647315,-2773.56790519,0.00011477,2]
[408292655,1773360647325,-387.816006,0.00011507,2]
[408292656,1773360647334,-387.816006,0.00011534,2]
[408292657,1773360647344,-387.816006,0.00011589,2]
[408292658,1773360647353,-1000.0,0.00011615,2]
[408292659,1773360647363,-387.816006,0.00011644,2]
[408292660,1773360647373,-150.0,0.00011679,2]
[408292661,1773360647382,-150.0,0.00011679,2]
[408292662,1773360647391,-150.0,0.00011679,2]
[408292663,1773360647401,-160.0,0.00011687,3]
[408292664,1773360647411,-387.816006,0.00011699,2]
[408292665,1773360647420,-387.816006,0.00011753,2]
[408292666,1773360647429,-232324.24591994,0.00011781,2]
[408292667,1773360647438,-729.64118218,0.00011782,7]
[408292668,1773360647447,-387.816006,0.00011808,2]
[408292669,1773360647457,-1000.0,0.00011835,2]
[408292670,1773360647467,-167.85045987,0.00011839,7]
[408292671,1773360647476,-830.5,0.000119,2]
[408292672,1773360647485,-296.04666666,0.00011926,7]
[408292673,1773360647495,-10000.0,0.00012,2]
[408292674,1773360647504,-2876.18991768,0.00012025,2]
[408292675,1773360647513,-6127.04503707,0.00012046,2]
[408292676,1773360647522,-1000.0,0.00012054,2]
[408292677,1773360647534,-182.28854025,0.00012066,7]
[408292678,1773360647543,-3895.40402527,0.000121,2]
[408292679,1773360647552,-223.95461025,0.00012104,7]
[408292680,1773360647561,-151.0,0.000122,2]
[408292681,1773360647571,-151.0,0.000122,2]
[408292682,1773360647580,-729.64118218,0.00012227,7]
[408292683,1773360647590,-1000.0,0.00012273,2]
[408292684,1773360647599,-1054.59,0.00012329,2]
[408292685,1773360647608,-3689.73,0.00012329,2]
[408292686,1773360647617,-3074.77,0.00012329,2]
[408292687,1773360647626,-2562.31,0.00012329,2]
[408292688,1773360647635,-2135.26,0.00012329,2]
[408292689,1773360647646,-1779.38,0.00012329,2]
[408292690,1773360647656,-1482.82,0.00012329,2]
[408292691,1773360647665,-1235.68,0.00012329,2]
[408292692,1773360647675,-1029.74,0.00012329,2]
[408292693,1773360647685,-858.11,0.00012329,2]
[408292694,1773360647695,-715.09,0.00012329,2]
[408292695,1773360647704,-595.91,0.00012329,2]
[408292696,1773360647714,-496.59,0.00012329,2]
[408292697,1773360647723,-413.83,0.00012329,2]
[408292698,1773360647733,-344.86,0.00012329,2]
[408292699,1773360647742,-287.38,0.00012329,2]
[408292700,1773360647752,-239.48,0.00012329,2]
[408292701,1773360647761,-199.57,0.00012329,2]
[408292702,1773360647776,-166.31,0.00012329,2]
[408292703,1773360647786,-831.57,0.00012329,2]
[408292704,1773360647796,-1000.0,0.00012369,2]
[408292705,1773360647808,-1000.0,0.00012369,2]
[408292706,1773360647819,-1000.0,0.00012369,2]
[408292707,1773360647829,-1000.0,0.00012492,2]
[408292708,1773360647839,-11729.16623352,0.000125,2]
[408292709,1773360647849,-151.0,0.000125,2]
[408292710,1773360647858,-151.0,0.000125,2]
[408292711,1773360647868,-151.0,0.000125,2]
[408292712,1773360647878,-2922.6345855,0.00012573,2]
[408292713,1773360647890,-59.97435914,0.00012573,2]
[408292714,1773360647901,-1623.98545671,0.00012615,2]
[408292715,1773360647911,-1522.77192253,0.00012694,5]
[408292716,1773360647921,-151.0,0.000127,2]
[408292717,1773360647930,-151.0,0.000127,2]
[408292718,1773360647939,-426.36866586,0.00012727,2]
[408292719,1773360647948,-800.0,0.00012733,4]
[408292720,1773360647957,-266.42169095,0.0001275,5]
[408292721,1773360647967,-151.0,0.000128,2]
[408292722,1773360647976,-717.0,0.00012893,2]
[408292723,1773360647985,-830.5,0.000129,2]
[408292724,1773360647995,-1018.90647884,0.000129,2]
[408292725,1773360648004,-1018.90647878,0.000129,2]
[408292726,1773360648013,-8.67107117,0.000129,2]
[408292787,1773361832918,-2444.3787353,5.315e-05,2]
[408292789,1773361832927,-720.93717673,5.369e-05,2]
[408292791,1773361832937,-219.31053467,5.396e-05,2]
[408292793,1773361832947,-1672.4735533,5.423e-05,2]
[408292797,1773361832975,-658.06644971,5.423e-05,2]
[408292866,1773361840225,-887.02225415,5.423e-05,2]
[408292868,1773361840237,-1112.97774585,5.423e-05,2]
[408292870,1773361840248,-669.45999699,5.423e-05,2]
[408292872,1773361840258,-1480.53209038,5.466e-05,2]
[408292873,1773361840269,-1200.0,5.532e-05,2]
[408292874,1773361840279,-800.0,5.58e-05,3]
[408292875,1773361840288,-1680.0,6.085e-05,2]
[408292876,1773361840298,-1836.58176576,6.175e-05,2]
[408292877,1773361840309,-1065.00000003,6.175e-05,2]
[408292878,1773361840321,-33.97879613,6.175e-05,2]
[408292879,1773361840330,-209.04373581,6.369e-05,2]
[408292881,1773361840343,-300.0,6.494e-05,2]
[408292882,1773361840353,-300.0,6.494e-05,2]
[408292884,1773361840362,-300.0,6.494e-05,2]
[408292886,1773361840372,-300.0,6.494e-05,2]
[408292887,1773361840382,-300.0,6.495e-05,2]
[408292888,1773361840391,-300.0,6.495e-05,2]
[408292889,1773361840402,-300.0,6.495e-05,2]
[408292890,1773361840411,-300.0,6.495e-05,2]
[408292891,1773361840422,-300.0,6.495e-05,2]
[408292892,1773361840431,-300.0,6.495e-05,2]
[408292893,1773361840441,-300.0,6.495e-05,2]
[408292894,1773361840450,-300.0,6.495e-05,2]
[408292895,1773361840459,-300.0,6.495e-05,2]
[408292896,1773361840469,-300.0,6.495e-05,2]
[408292897,1773361840479,-300.0,6.495e-05,2]
[408292898,1773361840489,-300.0,6.495e-05,2]
[408292899,1773361840499,-300.0,6.495e-05,2]
[408292900,1773361840509,-300.0,6.495e-05,2]
[408292901,1773361840519,-11.83029058,6.495e-05,2]
[408292902,1773361840530,-288.16970942,6.495e-05,2]
[408292903,1773361840540,-225.40664251,6.5e-05,2]
[408292904,1773361840549,-500.0,6.5e-05,2]
[408292905,1773361840558,-500.0,6.5e-05,2]
[408292906,1773361840567,-500.0,6.5e-05,2]
[408292907,1773361840576,-325.0748303,6.5e-05,2]
[408292908,1773361840590,-500.0,6.5e-05,2]
[408292909,1773361840599,-500.0,6.5e-05,2]
[408292911,1773361840609,-231.09881777,6.694e-05,2]
[408292913,1773361840771,-968.90118223,6.694e-05,2]
[408292914,1773361840782,-420.0,7.143e-05,2]
[408292915,1773361840791,-420.0,7.143e-05,2]
[408292916,1773361840801,-420.0,7.143e-05,2]
[408292917,1773361840811,-250.0,7.238e-05,2]
[408292918,1773361840821,-677.41581615,7.351e-05,2]
[408292932,1773361843474,-2729.03417931,7.351e-05,2]
[408292933,1773361843484,-258.78643092,7.396e-05,2]
[408292934,1773361843494,-230.0,7.858e-05,2]
[408292935,1773361843503,-587.0,7.858e-05,2]
[408292936,1773361843513,-44.31684552,7.899e-05,2]
[408292937,1773361843526,-106.68315448,7.899e-05,2]
[408292938,1773361843536,-151.0,7.899e-05,2]
[408292939,1773361843545,-178.0,7.899e-05,2]
[408292940,1773361843554,-3659.60559858,8.526e-05,2]
[408292941,1773361843563,-823.0,8.644e-05,2]
[408292942,1773361843572,-86.37909348,8.79e-05,2]
[408292943,1773361843586,-349.62090652,8.79e-05,2]
[408292944,1773361843595,-298.26232716,9.396e-05,2]
[408292945,1773361843604,-3912.76120182,9.702e-05,2]
[408292946,1773361843613,-498.3555645,0.00010877,2]
[408292947,1773361843624,-506.08378009,0.00010877,2]
[408292948,1773361843635,-1826.03086402,0.00010877,2]
[408292949,1773361843646,-639.54173987,0.00010877,2]
[408292950,1773361843657,-695.90485659,0.00010877,2]
[408292951,1773361843666,-158.551,0.000112,2]
[408292952,1773361843675,-337.7382234,0.00011396,2]
[408292953,1773361843686,-600.0,0.00011423,2]
[408292954,1773361843695,-189.867,0.0001179,2]
[408292955,1773361843704,-4191.19189346,0.00012053,2]
[408292956,1773361843714,-720.0,0.00012565,2]
[408292957,1773361843723,-745.13306361,0.00012642,2]
[408292958,1773361843733,-2150.738,0.00012749,5]
[408292959,1773361843743,-2230.315306,0.00012749,5]
[408292960,1773361843752,-2312.83697232,0.00012749,5]
[408292961,1773361843762,-2398.4119403,0.00012749,5]
[408292963,1773361843771,-2487.15318209,0.00012749,5]
[408292965,1773361843780,-2579.17784983,0.00012749,5]
[408292967,1773361843790,-2674.60743027,0.00012749,5]
[408292969,1773361843799,-2773.56790519,0.00012749,5]
[408292971,1773361843809,-763.09597525,0.000129,2]
[408292973,1773361843819,-160.0,0.00013,3]
[408292974,1773361843828,-160.82570678,0.00013,3]
[408292975,1773361843843,-601.31210848,0.00013,2]
[408292976,1773361843854,-150.0483877,0.0001301,7]
[408292977,1773361843864,-346.69196923,0.0001301,7]
[408292978,1773361843874,-223.95461025,0.00013057,7]
[408292979,1773361843884,-151.0,0.000131,2]
[408292980,1773361843894,-151.0,0.000131,2]
[408292981,1773361843905,-4390.58903345,0.00013228,2]
[408292982,1773361843915,-5000.0,0.00013266,2]
[408292983,1773361843925,-6198.96228131,0.00013266,2]
[408292984,1773361843936,-678.95530449,0.000133,5]
[408292985,1773361843955,-525.21469551,0.000133,5]
[408292986,1773361843965,-160.0,0.0001335,4]
[408292987,1773361843975,-304.85610194,0.0001335,5]
[408292988,1773361843985,-301.01527533,0.00013365,2]
[408292989,1773361843995,-251.72916181,0.00013365,2]
[408292990,1773361844005,-377.21411964,0.00013396,2]
[408292991,1773361844015,-347.81146433,0.00013399,2]
[408292992,1773361844024,-151.0,0.000134,2]
[408292993,1773361844034,-151.0,0.000134,2]
[408292994,1773361844043,-101674.59468128,0.000134,2]
[408292995,1773361844054,-9046.98300026,0.000134,2]
[408293016,1773361846177,-1154.38,0.000134,2]
[408293017,1773361846199,-72280.23422515,0.000134,2]
[408293030,1773362404986,183.12,2e-05,2]
[408293032,1773362407426,183.1,2e-05,2]
[408293035,1773362628342,500.82288191,2.001e-05,2]
[408293036,1773362630021,-5000.0,2.037e-05,2]
[408293037,1773362630044,-194.63078891,2.069e-05,2]
[408293038,1773362630068,-183.12,2.1e-05,2]
[408293039,1773362630091,-183.12,2.1e-05,2]
[408293040,1773362643619,-5000.0,4.028e-05,2]
[408293041,1773362643640,-229.66433091,4.069e-05,2]
[408293042,1773362643660,-264.69787291,6.069e-05,2]
[408293043,1773362643680,-500.0,6.973e-05,2]
[408293072,1773363032173,-321.19101411,7.131e-05,2]
[408293074,1773363032183,-179.6318678,7.131e-05,2]
[408293076,1773363032193,-341.3681322,7.131e-05,2]
[408293078,1773363032203,-2202.51520164,7.231e-05,2]
[408293081,1773363032225,-2797.48479836,7.231e-05,2]
[408293085,1773363032235,-180.85092905,7.304e-05,2]
[408293088,1773363032245,-500.0,7.34e-05,2]
[408293091,1773363032254,-500.0,7.727e-05,2]
[408293094,1773363032263,-500.0,8.113e-05,2]
[408293097,1773363032272,-174.88548123,8.518e-05,2]
[408293099,1773363032282,-150.595,8.962e-05,2]
[408293102,1773363032291,-213.40409628,9.304e-05,2]
[408293105,1773363032300,-1200.0,0.00010292,2]
[408293108,1773363032309,-2042.73174015,0.00010293,2]
[408293109,1773363032318,-300.0,0.00010563,2]
[408293111,1773363032327,-300.0,0.00010563,2]
[408293113,1773363032336,-723.52717868,0.00010564,2]
[408293144,1773363038341,-1714.48313372,0.00010564,2]
[408293146,1773363038350,-300.0,0.00010775,2]
[408293148,1773363038360,-300.0,0.00010775,2]
[408293150,1773363038369,-300.0,0.00010775,2]
[408293152,1773363038379,-300.0,0.00010775,2]
[408293154,1773363038388,-300.0,0.00010775,2]
[408293156,1773363038397,-300.0,0.00010775,2]
[408293159,1773363038406,-300.0,0.00010775,2]
[408293161,1773363038429,-300.0,0.00010775,2]
[408293163,1773363038439,-300.0,0.00010775,2]
[408293165,1773363038449,-300.0,0.00010775,2]
[408293166,1773363038459,-300.0,0.00010775,2]
[408293168,1773363038470,-300.0,0.00010775,2]
[408293170,1773363038480,-300.0,0.00010775,2]
[408293172,1773363038491,-300.0,0.00010775,2]
[408293174,1773363038502,-300.0,0.00010775,2]
[408293175,1773363038511,-245.95726351,0.00011304,2]
[408293176,1773363038521,-231.0,0.00011321,2]
[408293177,1773363038530,-160.0,0.000121,2]
[408293178,1773363038540,-160.0,0.000125,2]
[408293179,1773363038550,-160.0199469,0.000128,2]
[408293180,1773363038560,-1202.23622508,0.00013166,2]
[408293181,1773363038569,-470.14395264,0.000132,2]
[408293182,1773363038579,-158.551,0.00013265,2]
[408293183,1773363038588,-689.12522,0.00013266,2]
[408293184,1773363038598,-13869.43735872,0.00013266,2]
[408293185,1773363038611,-1463.32666253,0.00013266,2]
[408293186,1773363038622,-699.38036296,0.00013266,2]
[408293187,1773363038633,-3573.35042748,0.00013266,2]
[408293203,1773363043504,-2201.9377645,0.00013266,2]
[408293204,1773363043515,-13158.269217,0.00013266,2]
[408293205,1773363043528,-7131.50415016,0.00013266,2]
[408293206,1773363043539,-1000.0,0.00013266,2]
[408293207,1773363043551,-1000.0,0.00013266,2]
[408293208,1773363043561,-500.0,0.00013273,2]
[408293209,1773363043572,-500.0,0.00013273,2]
[408293210,1773363043582,-500.0,0.00013273,2]
[408293211,1773363043592,-500.0,0.00013273,2]
[408293212,1773363043607,-500.0,0.00013273,2]
[408293214,1773363043618,-500.0,0.00013273,2]
[408293215,1773363043628,-243.46802503,0.00013299,2]
[408293217,1773363043641,-7803.95782481,0.000133,2]
[408293235,1773363046549,-467.43953708,0.00013167,2]
[408293236,1773363046561,-17802.989998,0.000133,2]
[408293237,1773363046602,-3537.00304111,0.000133,2]
[408293241,1773363285428,-400.0,8.873e-05,2]
[408293242,1773363317239,-4600.0,8.873e-05,2]
[408293243,1773363317259,-249.365,8.962e-05,2]
[408293246,1773363424332,-3400.0,9.485e-05,2]
[408293251,1773363610541,1189.0,2.001e-05,2]
[408293252,1773363681948,-1200.0,9.389e-05,2]
[408293253,1773363681975,-300.0,9.389e-05,2]
[408293254,1773363681994,-1200.0,9.39e-05,2]
[408293255,1773363682009,-300.0,9.39e-05,2]
[408293256,1773363682020,-748.28795945,9.39e-05,2]
[408293259,1773363821542,1370.09,2.6e-05,10]
[408293323,1773364232337,-1160.72508389,2.824e-05,2]
[408293330,1773364232391,-458.91420953,2.824e-05,2]
[408293332,1773364232401,-322.30266851,2.853e-05,2]
[408293334,1773364232412,-4677.69733149,2.853e-05,2]
[408293336,1773364232422,-553.21109881,2.882e-05,2]
[408293338,1773364232431,-185.26206394,2.926e-05,2]
[408293340,1773364232440,-938.0,2.998e-05,2]
[408293343,1773364232449,-300.0,2.999e-05,2]
[408293344,1773364232458,-230.0,2.999e-05,2]
[408293346,1773364232468,-300.0,2.999e-05,2]
[408293348,1773364232478,-3027.4279928,3e-05,2]
[408293350,1773364232487,-300.0,3.059e-05,2]
[408293352,1773364232495,-300.0,3.059e-05,2]
[408293354,1773364232504,-300.0,3.059e-05,2]
[408293356,1773364232514,-300.0,3.059e-05,2]
[408293358,1773364232524,-300.0,3.059e-05,2]
[408293360,1773364232534,-300.0,3.059e-05,2]
[408293362,1773364232543,-300.0,3.059e-05,2]
[408293364,1773364232553,-300.0,3.059e-05,2]
[408293366,1773364232562,-300.0,3.059e-05,2]
[408293368,1773364232571,-178.90223479,3.059e-05,2]
[408293411,1773364238503,-121.09776521,3.059e-05,2]
[408293412,1773364238512,-300.0,3.059e-05,2]
[408293413,1773364238522,-300.0,3.059e-05,2]
[408293414,1773364238532,-300.0,3.059e-05,2]
[408293415,1773364238541,-300.0,3.059e-05,2]
[408293416,1773364238550,-300.0,3.059e-05,2]
[408293417,1773364238559,-500.0,3.06e-05,2]
[408293418,1773364238568,-225.40664251,3.06e-05,2]
[408293419,1773364238577,-500.0,3.06e-05,2]
[408293420,1773364238586,-500.0,3.06e-05,2]
[408293421,1773364238595,-224.79559228,3.06e-05,2]
[408293422,1773364238606,-275.20440772,3.06e-05,2]
[408293423,1773364238615,-563.0150101,3.06e-05,2]
[408293424,1773364238624,-287.0,3.299e-05,2]
[408293425,1773364238633,-500.0,3.608e-05,2]
[408293426,1773364238642,-325.0748303,3.608e-05,2]
[408293427,1773364238651,-218.60923545,4.926e-05,2]
[408293428,1773364238662,-251.95640696,6.926e-05,2]
[408293429,1773364238671,-285.30357846,8.926e-05,2]
[408293430,1773364238680,-500.0,9.39e-05,2]
[408293431,1773364238688,-318.65074997,0.00010926,2]
[408293432,1773364238698,-1113.7482343,0.00010959,2]
[408293433,1773364238707,-9735.89558493,0.00011,2]
[408293434,1773364238718,-5037.00521822,0.00011,2]
[408293435,1773364238733,-537.54184,0.00011,2]
[408293444,1773364240846,-495.840245,0.00011,2]
[408293445,1773364241011,-23.71284098,0.00011,2]
[408293446,1773364241023,-3428.4456557,0.00011,2]
[408293447,1773364241034,-341.44406342,0.00011,2]
[408293461,1773364243495,-478.53528479,0.00011,2]
[408293462,1773364243601,-1319.90079212,0.00011,2]
[408293484,1773364246578,-8562.52294808,0.00011,2]
[408293485,1773364246739,-1209.79618404,0.00011,2]
[408293508,1773365424884,-748.28795945,2.553e-05,2]
[408293509,1773365428923,151.0,0.000102,120]
[408293519,1773365431549,-773.62206646,2.553e-05,2]
[408293525,1773365431594,-1097.77313243,2.553e-05,2]
[408293633,1773365437702,-2380.31684166,2.553e-05,2]
[408293634,1773365437713,-888.78550696,2.579e-05,2]
[408293635,1773365437831,-1104.170928,2.579e-05,2]
[408293661,1773365442898,-3007.04356504,2.579e-05,2]
[408293662,1773365442909,-5000.0,2.605e-05,2]
[408293663,1773365442918,-1200.0,2.63e-05,2]
[408293664,1773365442927,-165.31126535,2.645e-05,2]
[408293666,1773365442937,-212.0,2.657e-05,2]
[408293667,1773365442946,-300.0,2.657e-05,2]
[408293668,1773365442957,-215.0,2.657e-05,2]
[408293669,1773365442967,-300.0,3.089e-05,2]
[408293670,1773365442978,-300.0,3.089e-05,2]
[408293671,1773365442987,-300.0,3.089e-05,2]
[408293672,1773365442997,-300.0,3.089e-05,2]
[408293673,1773365443006,-300.0,3.089e-05,2]
[408293674,1773365443015,-300.0,3.089e-05,2]
[408293675,1773365443025,-300.0,3.089e-05,2]
[408293676,1773365443034,-300.0,3.089e-05,2]
[408293677,1773365443045,-300.0,3.089e-05,2]
[408293678,1773365443055,-300.0,3.089e-05,2]
[408293679,1773365443064,-300.0,3.089e-05,2]
[408293680,1773365443074,-300.0,3.089e-05,2]
[408293681,1773365443084,-300.0,3.089e-05,2]
[408293682,1773365443095,-300.0,3.089e-05,2]
[408293683,1773365443105,-300.0,3.089e-05,2]
[408293684,1773365443119,-500.0,3.09e-05,2]
[408293685,1773365443129,-500.0,3.09e-05,2]
[408293686,1773365443139,-500.0,3.09e-05,2]
[408293687,1773365443151,-600.0,3.15e-05,2]
[408293688,1773365443161,-196.646375,3.383e-05,2]
[408293689,1773365443170,-720.0,3.465e-05,2]
[408293690,1773365443180,-196.646375,3.62e-05,2]
[408293691,1773365443195,-864.0,3.811e-05,2]
[408293692,1773365443204,-196.646375,3.857e-05,2]
[408293693,1773365443214,-196.646375,4.094e-05,2]
[408293694,1773365443227,-1000.0,4.192e-05,2]
[408293695,1773365443237,-594.43845151,4.612e-05,2]
[408293696,1773365443249,-405.56154849,4.612e-05,2]
[408293697,1773365443259,-244.0,4.612e-05,2]
[408293698,1773365443273,-195.06729311,4.645e-05,2]
[408293699,1773365443282,-263.3701643,5e-05,2]
[408293719,1773365446177,-1166.06140749,5e-05,2]
[408293720,1773365446191,-1000.0,5.073e-05,2]
[408293721,1773365446202,-492.0,5.073e-05,2]
[408293722,1773365446213,-2843.03841816,5.22e-05,2]
[408293723,1773365446225,-4256.64526452,5.44e-05,2]
[408293724,1773365446237,-1000.0,5.58e-05,2]
[408293725,1773365446248,-791.0,5.58e-05,2]
[408293726,1773365446259,-4627.04378245,5.66e-05,2]
[408293727,1773365446269,-5524.49141406,6.1e-05,2]
[408293728,1773365446282,-145.76069683,6.1e-05,2]
[408293729,1773365446292,-1000.0,6.138e-05,2]
[408293730,1773365446302,-1000.0,6.138e-05,2]
[408293731,1773365446313,-7083.85895726,6.541e-05,2]
[408293732,1773365446324,-224.82332088,6.645e-05,2]
[408293733,1773365446333,-1000.0,6.752e-05,2]
[408293734,1773365446343,-451.73053707,6.752e-05,2]
[408293749,1773366000922,2005.3934,0.000102,120]
[408293804,1773366631657,-269.08724583,4.342e-05,2]
[408293810,1773366631711,-1966.11974943,4.342e-05,2]
[408293813,1773366631723,-1163.34750901,4.342e-05,2]
[408293892,1773366637978,-1601.44549573,4.342e-05,2]
[408293893,1773366637988,-5000.0,4.386e-05,2]
[408293894,1773366637997,-300.0,4.538e-05,2]
[408293895,1773366638006,-159.21957901,4.543e-05,2]
[408293896,1773366638016,-420.0,4.992e-05,2]
[408293897,1773366638025,-665.2090696,5.269e-05,2]
[408293898,1773366638034,-247.0,5.323e-05,2]
[408293899,1773366638044,-1502.4895623,5.324e-05,2]
[408293900,1773366638054,-587.0,5.491e-05,2]
[408293901,1773366638063,-823.0,6.04e-05,2]
[408293902,1773366638072,-187.87910323,6.543e-05,2]
[408293903,1773366638081,-1152.0,6.644e-05,2]
[408293904,1773366638091,-8497.46580362,7.201e-05,2]
[408293905,1773366638100,-1613.0,7.308e-05,2]
[408293906,1773366638110,-9157.66000838,7.421e-05,2]
[408293907,1773366638119,-5885.40617744,7.641e-05,2]
[408293917,1773366644148,-722.0,7.641e-05,2]
[408293918,1773366644160,-3211.48152642,7.641e-05,2]
[408293919,1773366644169,-10963.35893257,8.081e-05,2]
[408293920,1773366644179,-151.0,8.219e-05,2]
[408293921,1773366644189,-600.0,8.242e-05,2]
[408293922,1773366644199,-6074.15954101,8.301e-05,2]
[408293923,1773366644211,-2620.42428364,8.301e-05,2]
[408293931,1773366646139,-2389.82381288,8.301e-05,2]
[408293932,1773366646149,-171.31539293,8.521e-05,2]
[408293933,1773366646160,-11843.29191283,8.522e-05,2]
[408293934,1773366646170,-216.53862745,8.543e-05,2]
[408293935,1773366646181,-11945.71774011,8.742e-05,2]
[408293936,1773366646190,-12723.2248931,8.962e-05,2]
[408293937,1773366646201,-720.0,9.066e-05,2]
[408293938,1773366646211,-12807.02784269,9.182e-05,2]
[408293939,1773366646220,-571.63319822,9.551e-05,5]
[408293940,1773366646229,-5817.91779074,9.622e-05,2]
[408293941,1773366646241,-7850.42015453,9.622e-05,2]
[408293942,1773366646250,-4734.50082054,9.842e-05,2]
[408293974,1773367282456,-1066.95203574,8.723e-05,2]
[408293975,1773367282506,-4271.92459017,8.811e-05,2]
[408293977,1773367311884,-338.87662591,8.811e-05,2]
[408293978,1773367311909,-389.19878392,8.811e-05,2]
[408293980,1773367341036,-338.87662591,8.811e-05,2]
[408294092,1773367838108,-5000.0,8.38e-05,2]
[408294093,1773367838118,-3057.1209946,8.465e-05,2]
[408294094,1773367838127,-539.0,8.465e-05,2]
[408294095,1773367838136,-1200.0,8.549e-05,2]
[408294096,1773367838146,-158.22228699,8.593e-05,2]
[408294097,1773367838155,-300.0,9.169e-05,2]
[408294098,1773367838164,-300.0,9.169e-05,2]
[408294099,1773367838174,-300.0,9.169e-05,2]
[408294100,1773367838185,-410.68043899,9.308e-05,2]
[408294101,1773367838194,-739.22479018,9.308e-05,2]
[408294102,1773367838203,-1314.17740477,9.308e-05,2]
[408294103,1773367838212,-2053.40219495,9.308e-05,2]
[408294104,1773367838223,-2956.89916073,9.308e-05,2]
[408294105,1773367838233,-4024.66830211,9.308e-05,2]
[408294106,1773367838242,-5256.70961908,9.308e-05,2]
[408294107,1773367838251,-6653.02311165,9.308e-05,2]
[408294108,1773367838260,-413.0,9.404e-05,2]
[408294109,1773367838269,-536.80881602,9.551e-05,5]
[408294110,1773367838278,-472.52128997,9.797e-05,2]
[408294111,1773367838287,-850.53832195,9.797e-05,2]
[408294112,1773367838296,-901.58698679,9.797e-05,2]
[408294113,1773367838308,-610.48114113,9.797e-05,2]
[408294114,1773367838317,-2362.60644987,9.797e-05,2]
[408294115,1773367838327,-2197.71101855,9.797e-05,2]
[408294116,1773367838338,-1204.44226926,9.797e-05,2]
[408294117,1773367838347,-300.0,9.938e-05,2]
[408294118,1773367838356,-300.0,9.938e-05,2]
[408294119,1773367838366,-512.83680854,0.0001,2]
[408294120,1773367838375,-227.0,0.00010086,2]
[408294121,1773367838384,-420.0,0.00010086,2]
[408294122,1773367838393,-2147.23526406,0.00010171,5]
[408294123,1773367838402,-1000.0,0.000102,2]
[408294124,1773367838411,-162.13805472,0.000102,2]
[408294125,1773367838420,-186.70229865,0.00010593,2]
[408294126,1773367838430,-1000.0,0.00010958,2]
[408294127,1773367838439,-151.0,0.00010959,2]
[408294128,1773367838449,-151.0,0.00010959,2]
[408294129,1773367838458,-151.0,0.00010959,2]
[408294130,1773367838468,-17590.78083534,0.00011,2]
[408294131,1773367838479,-60675.62142594,0.00011,2]
[408294133,1773367840502,-1186.96651919,0.00011,2]
[408294134,1773367840555,-4721.02928109,0.00011,2]
[408294135,1773367840566,-1932.4707574,0.00011,2]
[408294136,1773367840908,-749.58,0.00011,2]
[408294150,1773367843232,-3249.49849509,0.00011,2]
[408294151,1773367843244,-400.0,0.00011,2]
[408294156,1773367846112,-5000.0,0.00010983,2]
[408294157,1773367846122,-28622.03036072,0.00011,2]
[408294388,1773369032086,-5000.0,9.297e-05,2]